fUSD/lending_fUSD_20260426
["ID","MTS","AMOUNT","RATE_DAILY","PERIOD"]
[421157266,1777183832752,-150.0,9.787e-05,2]
[421157267,1777183832761,-150.0,9.797e-05,2]
[421157268,1777183832771,-172.745799,9.8e-05,2]
[421157269,1777183832781,-222.680131,9.8e-05,2]
[421157270,1777183832790,-150.0,9.806e-05,2]
[421157271,1777183832799,-150.0,9.812e-05,2]
[421157272,1777183832809,-150.0,9.814e-05,2]
[421157273,1777183832819,-150.0,9.817e-05,2]
[421157274,1777183832828,-150.0,9.825e-05,2]
[421157275,1777183832838,-150.0,9.837e-05,2]
[421157276,1777183832847,-150.0,9.845e-05,2]
[421157277,1777183832857,-150.0,9.856e-05,2]
[421157278,1777183832866,-150.0,9.857e-05,2]
[421157279,1777183832876,-150.0,9.864e-05,2]
[421157280,1777183832885,-150.0,9.87e-05,2]
[421157281,1777183832894,-150.0,9.87e-05,2]
[421157282,1777183832904,-150.0,9.87e-05,2]
[421157283,1777183832913,-150.0,9.87e-05,2]
[421157284,1777183832923,-150.0,9.877e-05,2]
[421157285,1777183832932,-150.0,9.883e-05,2]
[421157286,1777183832942,-150.0,9.897e-05,2]
[421157287,1777183832951,-150.0,9.899e-05,2]
[421157288,1777183832960,-150.0,9.902e-05,2]
[421157289,1777183832970,-150.0,9.917e-05,2]
[421157290,1777183832979,-150.0,9.922e-05,2]
[421157291,1777183832988,-150.0,9.929e-05,2]
[421157292,1777183832999,-150.0,9.937e-05,2]
[421157293,1777183833008,-150.0,9.941e-05,2]
[421157294,1777183833017,-150.0,9.941e-05,2]
[421157295,1777183833027,-150.0,9.957e-05,2]
[421157296,1777183833036,-150.0,9.958e-05,2]
[421157297,1777183833046,-150.0,9.958e-05,2]
[421157298,1777183833055,-150.0,9.96e-05,2]
[421157299,1777183833064,-250.27271642,9.969e-05,2]
[421157300,1777183833074,-500.0,9.973e-05,2]
[421157301,1777183833083,-150.0,9.977e-05,2]
[421157302,1777183833092,-150.0,9.979e-05,2]
[421157303,1777183833102,-150.0,9.983e-05,2]
[421157304,1777183833111,-150.0,9.988e-05,2]
[421157305,1777183833121,-150.0,9.997e-05,2]
[421157306,1777183833130,-150.0,9.999e-05,2]
[421157307,1777183833140,-149652.78952325,0.0001,2]
[421157308,1777183833149,-500.0,0.0001,2]
[421157309,1777183833159,-151.0,0.0001,2]
[421157310,1777183833169,-500.0,0.0001,2]
[421157311,1777183833179,-151.0,0.0001,2]
[421157312,1777183833188,-151.0,0.0001,2]
[421157313,1777183833198,-150.0,0.00010017,2]
[421157314,1777183833208,-150.0,0.00010018,2]
[421157315,1777183833217,-150.0,0.00010025,2]
[421157316,1777183833227,-150.0,0.00010037,2]
[421157317,1777183833237,-150.0,0.00010037,2]
[421157318,1777183833247,-150.0,0.00010047,2]
[421157319,1777183833257,-150.0,0.00010047,2]
[421157320,1777183833267,-150.0,0.00010047,2]
[421157321,1777183833276,-150.0,0.00010047,2]
[421157322,1777183833286,-150.0,0.00010047,2]
[421157323,1777183833296,-150.0,0.00010056,2]
[421157324,1777183833306,-150.0,0.00010057,2]
[421157325,1777183833315,-150.0,0.00010068,2]
[421157326,1777183833325,-150.0,0.00010075,2]
[421157327,1777183833341,-150.0,0.00010077,2]
[421157328,1777183833351,-150.0,0.00010095,2]
[421157329,1777183833361,-150.0,0.00010096,2]
[421157330,1777183833371,-150.0,0.00010105,2]
[421157331,1777183833381,-150.0,0.0001011,2]
[421157332,1777183833392,-150.0,0.00010114,2]
[421157333,1777183833402,-150.0,0.00010116,2]
[421157334,1777183833413,-150.0,0.00010133,2]
[421157335,1777183833423,-150.0,0.00010135,2]
[421157336,1777183833434,-150.0,0.00010135,2]
[421157337,1777183833445,-150.0,0.00010136,2]
[421157338,1777183833455,-150.0,0.00010152,2]
[421157339,1777183833466,-150.0,0.00010152,2]
[421157340,1777183833476,-150.0,0.00010156,2]
[421157341,1777183833486,-150.0,0.00010164,2]
[421157342,1777183833496,-150.0,0.00010172,2]
[421157343,1777183833506,-150.0,0.00010176,2]
[421157344,1777183833517,-150.0,0.00010191,2]
[421157345,1777183833527,-150.0,0.00010195,2]
[421157346,1777183833537,-150.0,0.00010196,2]
[421157347,1777183833547,-150.0,0.0001021,2]
[421157348,1777183833557,-150.0,0.00010216,2]
[421157349,1777183833567,-150.0,0.00010223,2]
[421157350,1777183833578,-150.0,0.00010223,2]
[421157351,1777183833588,-150.0,0.00010223,2]
[421157352,1777183833598,-150.0,0.00010223,2]
[421157353,1777183833609,-150.0,0.00010229,2]
[421157354,1777183833619,-150.0,0.00010236,2]
[421157355,1777183833629,-150.0,0.00010237,2]
[421157356,1777183833639,-150.0,0.00010248,2]
[421157357,1777183833648,-150.0,0.00010256,2]
[421157358,1777183833659,-150.0,0.00010268,2]
[421157359,1777183833669,-150.0,0.00010276,2]
[421157360,1777183833679,-150.0,0.00010279,2]
[421157361,1777183833690,-150.0,0.00010282,2]
[421157362,1777183833700,-150.0,0.00010287,2]
[421157363,1777183833709,-150.0,0.00010296,2]
[421157364,1777183833719,-150.0,0.00010306,2]
[421157365,1777183833736,-150.0,0.00010311,2]
[421157366,1777183833746,-150.0,0.00010311,2]
[421157367,1777183833756,-150.0,0.00010311,2]
[421157368,1777183833766,-150.0,0.00010316,2]
[421157369,1777183833776,-150.0,0.00010322,2]
[421157370,1777183833787,-150.0,0.00010325,2]
[421157371,1777183833797,-150.0,0.00010336,2]
[421157372,1777183833807,-150.0,0.0001034,2]
[421157373,1777183833817,-150.0,0.00010345,2]
[421157374,1777183833827,-150.0,0.00010356,2]
[421157375,1777183833838,-150.0,0.00010364,2]
[421157376,1777183833848,-150.0,0.00010364,2]
[421157377,1777183833858,-150.0,0.00010376,2]
[421157378,1777183833868,-150.0,0.00010383,2]
[421157379,1777183833879,-150.0,0.00010396,2]
[421157380,1777183833890,-150.0,0.00010399,2]
[421157381,1777183833901,-150.0,0.00010399,2]
[421157382,1777183833911,-150.0,0.00010399,2]
[421157383,1777183833921,-150.0,0.00010399,2]
[421157384,1777183833931,-150.0,0.00010402,2]
[421157385,1777183833941,-150.0,0.00010406,2]
[421157386,1777183833951,-150.0,0.00010416,2]
[421157387,1777183833962,-150.0,0.00010422,2]
[421157388,1777183833972,-150.0,0.00010436,2]
[421157389,1777183833983,-150.0,0.00010441,2]
[421157390,1777183833993,-150.0,0.00010448,2]
[421157391,1777183834003,-150.0,0.00010456,2]
[421157392,1777183834013,-150.0,0.00010458,2]
[421157393,1777183834023,-150.0,0.0001046,2]
[421157394,1777183834032,-150.0,0.00010476,2]
[421157395,1777183834043,-150.0,0.00010479,2]
[421157396,1777183834053,-150.0,0.00010487,2]
[421157397,1777183834063,-150.0,0.00010487,2]
[421157398,1777183834073,-150.0,0.00010491,2]
[421157399,1777183834084,-150.0,0.00010496,2]
[421157400,1777183834094,-150.0,0.00010498,2]
[421157401,1777183834104,-5000.0,0.000105,2]
[421157402,1777183834114,-150.0,0.00010515,2]
[421157403,1777183834129,-150.0,0.00010517,2]
[421157404,1777183834139,-150.0,0.00010518,2]
[421157405,1777183834149,-150.0,0.00010533,2]
[421157406,1777183834160,-150.0,0.00010535,2]
[421157407,1777183834171,-150.0,0.00010537,2]
[421157408,1777183834181,-150.0,0.00010555,2]
[421157409,1777183834191,-150.0,0.00010556,2]
[421157410,1777183834202,-272.37824658,0.00010575,2]
[421157411,1777183834212,-204.18753749,0.00010575,2]
[421157412,1777183834222,-153.51184745,0.00010575,2]
[421157413,1777183834232,-150.0,0.00010575,2]
[421157414,1777183834243,-257.99,0.00010575,2]
[421157415,1777183834254,-150.0,0.00010575,2]
[421157416,1777183834264,-250.01,0.00010575,2]
[421157417,1777183834274,-202.88015436,0.00010575,2]
[421157418,1777183834284,-154.11355957,0.00010575,2]
[421157419,1777183834295,-150.0,0.00010599,2]
[421157420,1777183834305,-482.0,0.000106,5]
[421157421,1777183834316,-33093.9311,0.000106,2]
[421157422,1777183834327,-4650.3265,0.000106,2]
[421157423,1777183834338,-2000.0,0.000106,2]
[421157424,1777183834348,-474675.02562901,0.000106,2]
[421157425,1777183835787,-123722.47653105,0.000106,2]
[421157426,1777183835800,-249400.22717547,0.000106,2]
[421157427,1777183835811,-217794.01945953,0.000106,2]
[421157428,1777183835823,-1065.16227668,0.000106,2]
[421157429,1777183835835,-1142.64297778,0.000106,2]
[421157430,1777183835862,-301.48251273,0.000106,2]
[421157431,1777183835874,-770.68,0.000106,2]
[421157432,1777183835973,-1950.17403298,0.000106,2]
[421157433,1777183835991,-458.44747329,0.000106,2]
[421157434,1777183836003,-3698.33092069,0.000106,2]
[421157435,1777183836014,-574.81083747,0.000106,2]
[421157436,1777183836048,-1206.96082785,0.000106,2]
[421157437,1777183836059,-2412.11522595,0.000106,2]
[421157438,1777183836075,-4775.8559646,0.000106,2]
[421157439,1777183836087,-2616.10127688,0.000106,2]
[421157440,1777183836100,-388.8323745,0.000106,2]
[421157449,1777183838159,-571.18927001,0.000106,2]
[421157450,1777183838172,-1150.03513351,0.000106,2]
[421157451,1777183838211,-1165.55,0.000106,2]
[421157452,1777183838265,-4097.43696543,0.000106,2]
[421157453,1777183838278,-2489.40973691,0.000106,2]
[421157454,1777183838424,-330.47737862,0.000106,2]
[421157455,1777183838479,-31764.34136703,0.000106,2]
[421157456,1777183838491,-48993.48432967,0.000106,2]
[421157457,1777183838503,-829.67010334,0.000106,2]
[421157461,1777183840201,-4323.43327946,0.000106,2]
[421157462,1777183840256,-504.38,0.000106,2]
[421157463,1777183840309,-564.11572434,0.000106,2]
[421157464,1777183840363,-1738.02322196,0.000106,2]
[421157465,1777183840375,-1127.06611192,0.000106,2]
[421157466,1777183840387,-412.33166174,0.000106,2]
[421157467,1777183840399,-1208.41684316,0.000106,2]
[421157468,1777183840416,-8441.88632382,0.000106,2]
[421157469,1777183840731,-3056.19022377,0.000106,2]
[421157470,1777183840744,-3302.40057009,0.000106,2]
[421157488,1777183843397,-343.07272125,0.000106,2]
[421157489,1777183843408,-33196.07213842,0.000106,2]
[421157490,1777183843420,-30983.49026162,0.000106,2]
[421157519,1777183846754,-399.33,0.00010547,2]
[421157520,1777183846765,-89381.90337309,0.000106,2]
[421157541,1777183849082,-51869.95948758,0.000106,2]
[421157542,1777183849094,-14616.47439896,0.000106,2]
[421157543,1777183849114,-1295.79346964,0.000106,2]
[421157544,1777183849126,-5414.6172557,0.000106,2]
[421157545,1777183865964,2871.95,1e-08,2]
[421157546,1777183866377,1794.97,1e-08,2]
[421157547,1777183867106,1076.98,2e-08,2]
[421157548,1777183868661,1435.97,2e-08,2]
[421157549,1777183887542,2820.14,7.445e-05,2]
[421157550,1777183887571,10000.01,7.445e-05,2]
[421157551,1777183887600,10000.01,7.445e-05,2]
[421157552,1777183887628,10000.01,7.445e-05,2]
[421157553,1777183887655,10000.01,7.445e-05,2]
[421157554,1777183887680,10000.01,7.445e-05,2]
[421157555,1777183887706,10000.01,7.445e-05,2]
[421157556,1777183887731,10000.01,7.445e-05,2]
[421157557,1777183887758,10000.01,7.445e-05,2]
[421157558,1777183887784,10000.01,7.445e-05,2]
[421157560,1777183921477,300.0,7.444e-05,2]
[421157561,1777183922044,300.0,7.444e-05,2]
[421157562,1777183922420,150.0,7.444e-05,2]
[421157563,1777183943229,538.49,1e-08,2]
[421157564,1777183943990,179.5,1e-08,2]
[421157565,1777183985513,162.0,1e-08,3]
[421157566,1777183985769,162.0,2.138e-05,3]
[421157567,1777183986010,162.0,4.275e-05,3]
[421157568,1777183986245,162.0,6.411e-05,3]
[421157569,1777184047357,153.0,6.411e-05,3]
[421157570,1777184049603,5022.71439136,7.445e-05,2]
[421157571,1777184101203,1200.0,7.444e-05,2]
[421157572,1777184102168,150.0,7.444e-05,2]
[421157573,1777184105956,500.0,7.444e-05,2]
[421157574,1777184106069,500.0,7.444e-05,2]
[421157575,1777184106247,358.30560864,7.444e-05,2]
[421157576,1777184106272,141.69439136,7.444e-05,2]
[421157577,1777184106355,354.14585271,7.444e-05,2]
[421157578,1777184118789,500.0,7.444e-05,2]
[421157579,1777184118829,500.0,7.444e-05,2]
[421157580,1777184118868,500.0,7.444e-05,2]
[421157581,1777184118905,410.0,7.444e-05,2]
[421157582,1777184118952,500.0,7.444e-05,2]
[421157583,1777184119007,500.0,7.444e-05,2]
[421157584,1777184119048,500.0,7.444e-05,2]
[421157585,1777184119087,500.0,7.444e-05,2]
[421157586,1777184119127,500.0,7.444e-05,2]
[421157587,1777184119669,500.0,7.444e-05,2]
[421157588,1777184119709,500.0,7.444e-05,2]
[421157589,1777184119750,500.0,7.444e-05,2]
[421157590,1777184119790,500.0,7.444e-05,2]
[421157591,1777184119826,500.0,7.444e-05,2]
[421157592,1777184119862,500.0,7.444e-05,2]
[421157593,1777184119902,500.0,7.444e-05,2]
[421157594,1777184119946,500.0,7.444e-05,2]
[421157595,1777184119981,500.0,7.444e-05,2]
[421157596,1777184133245,500.0,7.444e-05,2]
[421157597,1777184133282,94.16975593,7.444e-05,2]
[421157598,1777184133309,405.83024407,7.444e-05,2]
[421157599,1777184133347,500.0,7.444e-05,2]
[421157600,1777184152142,292.01289349,7.444e-05,2]
[421157601,1777184157446,272.21780598,7.444e-05,2]
[421157602,1777184160908,8529.94905646,7.435e-05,2]
[421157603,1777184160932,10000.01,7.435e-05,2]
[421157604,1777184160954,10000.01,7.435e-05,2]
[421157605,1777184160977,10000.01,7.435e-05,2]
[421157606,1777184160999,7834.22718283,7.435e-05,2]
[421157609,1777184195584,500.0,7.444e-05,2]
[421157610,1777184195648,173.6191554,7.444e-05,2]
[421157611,1777184221145,300.0,7.444e-05,2]
[421157612,1777184226608,312.0,7.444e-05,3]
[421157613,1777184228739,240.0,7.444e-05,2]
[421157614,1777184228792,500.0,7.444e-05,2]
[421157615,1777184228857,140.16366177,7.444e-05,2]
[421157616,1777184228893,359.83633823,7.444e-05,2]
[421157617,1777184228949,500.0,7.444e-05,2]
[421157618,1777184228995,500.0,7.444e-05,2]
[421157619,1777184229047,500.0,7.444e-05,2]
[421157620,1777184229096,500.0,7.444e-05,2]
[421157621,1777184229140,500.0,7.444e-05,2]
[421157622,1777184229184,500.0,7.444e-05,2]
[421157623,1777184229248,500.0,7.444e-05,2]
[421157624,1777184229369,500.0,7.444e-05,2]
[421157625,1777184229420,500.0,7.444e-05,2]
[421157626,1777184229474,250.30443725,7.444e-05,2]
[421157627,1777184229529,500.0,7.444e-05,2]
[421157628,1777184229582,500.0,7.444e-05,2]
[421157629,1777184229633,500.0,7.444e-05,2]
[421157630,1777184229691,500.0,7.444e-05,2]
[421157631,1777184229742,500.0,7.444e-05,2]
[421157632,1777184229803,500.0,7.444e-05,2]
[421157633,1777184229869,500.0,7.444e-05,2]
[421157634,1777184233649,154.0,7.444e-05,3]
[421157635,1777184283249,150.0,7.444e-05,2]
[421157636,1777184283306,300.0,7.444e-05,2]
[421157637,1777184287278,297.0,7.444e-05,3]
[421157638,1777184302317,488.86922452,7.444e-05,2]
[421157639,1777184302350,11.13077548,7.444e-05,2]
[421157640,1777184302391,500.0,7.444e-05,2]
[421157641,1777184302445,500.0,7.444e-05,2]
[421157642,1777184302565,500.0,7.444e-05,2]
[421157643,1777184302606,500.0,7.444e-05,2]
[421157644,1777184302648,500.0,7.444e-05,2]
[421157645,1777184302693,500.0,7.444e-05,2]
[421157646,1777184302743,500.0,7.444e-05,2]
[421157647,1777184302782,500.0,7.444e-05,2]
[421157648,1777184302835,500.0,7.444e-05,2]
[421157649,1777184302877,500.0,7.444e-05,2]
[421157650,1777184302923,174.92643211,7.444e-05,2]
[421157651,1777184303054,500.0,7.444e-05,2]
[421157652,1777184303095,500.0,7.444e-05,2]
[421157653,1777184303171,248.0,7.444e-05,2]
[421157654,1777184327837,375.9622745,7.444e-05,2]
[421157655,1777184348265,154.0,7.444e-05,3]
[421157656,1777184372251,588.0,7.444e-05,2]
[421157657,1777184374043,500.0,7.444e-05,2]
[421157658,1777184374129,241.65849246,7.444e-05,2]
[421157659,1777184380079,263.17359214,7.444e-05,2]
[421157660,1777184401131,300.0,7.444e-05,2]
[421157661,1777184401165,300.0,7.444e-05,2]
[421157662,1777184401199,187.0,7.444e-05,2]
[421157663,1777184401262,656.15843331,7.444e-05,2]
[421157664,1777184401290,543.84156669,7.444e-05,2]
[421157665,1777184411416,163.0,7.444e-05,3]
[421157666,1777184411736,282.0,7.444e-05,3]
[421157667,1777184426110,154.0,7.444e-05,3]
[421157668,1777184461853,300.0,7.444e-05,2]
[421157669,1777184465286,500.0,7.444e-05,2]
[421157670,1777184465357,500.0,7.444e-05,2]
[421157671,1777184465456,366.99217328,7.444e-05,2]
[421157672,1777184465489,500.0,7.444e-05,2]
[421157673,1777184465798,500.0,7.444e-05,2]
[421157674,1777184465954,500.0,7.444e-05,2]
[421157675,1777184467779,268.0,7.444e-05,3]
[421157676,1777184473740,154.0,7.444e-05,3]
[421157677,1777184479540,500.0,7.444e-05,2]
[421157678,1777184488342,4768.17626003,7.296e-05,2]
[421157679,1777184488372,1277.69473997,7.296e-05,2]
[421157680,1777184488412,408.026,7.296e-05,2]
[421157681,1777184498787,500.0,7.444e-05,2]
[421157682,1777184501516,387.26127448,7.437e-05,2]
[421157683,1777184512477,500.0,7.444e-05,2]
[421157684,1777184512519,500.0,7.444e-05,2]
[421157685,1777184521519,300.0,7.444e-05,2]
[421157686,1777184531368,500.0,7.444e-05,2]
[421157687,1777184531882,254.0,7.444e-05,3]
[421157688,1777184545560,500.0,7.444e-05,2]
[421157689,1777184557075,500.0,7.444e-05,2]
[421157690,1777184568511,500.0,7.444e-05,2]
[421157691,1777184580898,500.0,7.444e-05,2]
[421157692,1777184590639,500.0,7.444e-05,2]
[421157693,1777184590686,500.0,7.444e-05,2]
[421157694,1777184609710,2373.02798555,7.444e-05,2]
[421157695,1777184609732,10000.01,7.444e-05,2]
[421157696,1777184609761,10000.01,7.444e-05,2]
[421157697,1777184609786,10000.01,7.444e-05,2]
[421157698,1777184609812,10000.01,7.444e-05,2]
[421157699,1777184609837,9706.72765041,7.444e-05,2]
[421157700,1777184609910,293.28234959,7.444e-05,2]
[421157701,1777184609941,206.71765041,7.444e-05,2]
[421157702,1777184625558,500.0,7.444e-05,2]
[421157703,1777184637401,500.0,7.444e-05,2]
[421157704,1777184642097,300.0,7.444e-05,2]
[421157705,1777184642934,27000.0,0.000166,120]
[421157706,1777184642966,150.0,7.444e-05,2]
[421157707,1777184646831,242.0,7.444e-05,3]
[421157708,1777184649438,500.0,7.444e-05,2]
[421157709,1777184660916,500.0,7.444e-05,2]
[421157710,1777184672652,500.0,7.444e-05,2]
[421157711,1777184672952,184.2215145,7.444e-05,2]
[421157712,1777184672995,500.0,7.444e-05,2]
[421157713,1777184673542,506.89452129,7.444e-05,2]
[421157714,1777184673727,500.0,7.444e-05,2]
[421157715,1777184673779,500.0,7.444e-05,2]
[421157716,1777184685455,500.0,7.444e-05,2]
[421157717,1777184685507,500.0,7.444e-05,2]
[421157718,1777184701147,300.0,7.444e-05,2]
[421157719,1777184701179,1200.0,7.444e-05,2]
[421157720,1777184701217,300.0,7.444e-05,2]
[421157721,1777184702584,150.0,6.682e-05,2]
[421157722,1777184702663,150.0,6.806e-05,2]
[421157723,1777184702734,150.0,6.93e-05,2]
[421157724,1777184702794,150.0,7.053e-05,2]
[421157725,1777184702873,150.0,7.177e-05,2]
[421157726,1777184702935,150.0,7.301e-05,2]
[421157727,1777184703007,195.0,7.425e-05,2]
[421157728,1777184704393,500.0,7.444e-05,2]
[421157729,1777184705612,230.0,7.444e-05,3]
[421157730,1777184707985,163.0,7.444e-05,3]
[421157731,1777184709662,-5000.01,7.445e-05,2]
[421157732,1777184709693,-5000.01,7.445e-05,2]
[421157733,1777184709724,-5000.01,7.445e-05,2]
[421157734,1777184709746,-5000.01,7.445e-05,2]
[421157735,1777184709766,-5000.01,7.445e-05,2]
[421157736,1777184709824,-5000.01,7.445e-05,2]
[421157737,1777184709844,-5000.01,7.445e-05,2]
[421157738,1777184709907,-5000.01,7.445e-05,2]
[421157739,1777184710020,-5000.01,7.445e-05,2]
[421157740,1777184711095,150.0,6.682e-05,2]
[421157741,1777184711157,150.0,6.729e-05,2]
[421157742,1777184711208,28.89396421,6.775e-05,2]
[421157743,1777184711242,121.10603579,6.775e-05,2]
[421157744,1777184711291,150.0,6.821e-05,2]
[421157745,1777184711351,150.0,6.868e-05,2]
[421157746,1777184711418,150.0,6.914e-05,2]
[421157747,1777184711499,150.0,6.961e-05,2]
[421157748,1777184711563,150.0,7.007e-05,2]
[421157749,1777184711639,150.0,7.053e-05,2]
[421157750,1777184711703,150.0,7.1e-05,2]
[421157751,1777184711770,150.0,7.146e-05,2]
[421157752,1777184711849,150.0,7.193e-05,2]
[421157753,1777184711868,-5000.01,7.445e-05,2]
[421157754,1777184711908,150.0,7.239e-05,2]
[421157755,1777184711949,-5000.01,7.445e-05,2]
[421157756,1777184711993,150.0,7.285e-05,2]
[421157757,1777184712038,-5000.01,7.445e-05,2]
[421157758,1777184712075,150.0,7.332e-05,2]
[421157759,1777184712144,150.0,7.378e-05,2]
[421157760,1777184712162,-5000.01,7.445e-05,2]
[421157761,1777184712200,185.55574145,7.425e-05,2]
[421157762,1777184712238,-5000.01,7.445e-05,2]
[421157763,1777184712364,-5000.01,7.445e-05,2]
[421157764,1777184712403,150.0,6.682e-05,2]
[421157765,1777184712457,-5000.01,7.445e-05,2]
[421157766,1777184712497,150.0,7.053e-05,2]
[421157767,1777184712548,150.0,7.425e-05,2]
[421157768,1777184712580,-5000.01,7.445e-05,2]
[421157769,1777184712698,-5000.01,7.445e-05,2]
[421157770,1777184713519,288.87398408,7.444e-05,2]
[421157771,1777184717860,150.0,6.682e-05,2]
[421157772,1777184717892,150.0,6.831e-05,2]
[421157773,1777184717923,150.0,6.979e-05,2]
[421157774,1777184717956,150.0,7.128e-05,2]
[421157775,1777184717994,150.0,7.276e-05,2]
[421157776,1777184718025,233.93873769,7.425e-05,2]
[421157777,1777184718395,150.0,6.682e-05,2]
[421157778,1777184718458,150.0,6.806e-05,2]
[421157779,1777184718530,150.0,6.93e-05,2]
[421157780,1777184718601,150.0,7.053e-05,2]
[421157781,1777184718673,150.0,7.177e-05,2]
[421157782,1777184718746,150.0,7.301e-05,2]
[421157783,1777184718814,169.86103325,7.425e-05,2]
[421157784,1777184719200,150.0,6.682e-05,2]
[421157785,1777184722180,500.0,7.444e-05,2]
[421157786,1777184722228,500.0,7.444e-05,2]
[421157787,1777184722648,500.0,7.444e-05,2]
[421157788,1777184722687,500.0,7.444e-05,2]
[421157789,1777184722726,500.0,7.444e-05,2]
[421157790,1777184722758,150.0,6.682e-05,2]
[421157791,1777184722795,150.0,7.053e-05,2]
[421157792,1777184722833,367.61405507,7.444e-05,2]
[421157793,1777184722886,227.43731342,7.425e-05,2]
[421157794,1777184724307,152.0,7.436e-05,7]
[421157795,1777184729308,150.0,6.682e-05,2]
[421157796,1777184729350,150.0,6.714e-05,2]
[421157797,1777184729399,150.0,6.747e-05,2]
[421157798,1777184729476,150.0,6.779e-05,2]
[421157799,1777184729544,150.0,6.811e-05,2]
[421157800,1777184729606,150.0,6.844e-05,2]
[421157801,1777184729676,150.0,6.876e-05,2]
[421157802,1777184729758,150.0,6.908e-05,2]
[421157803,1777184729815,53.62309925,6.94e-05,2]
[421157804,1777184729839,96.37690075,6.94e-05,2]
[421157805,1777184729909,150.0,6.973e-05,2]
[421157806,1777184729958,150.0,7.005e-05,2]
[421157807,1777184730035,150.0,7.037e-05,2]
[421157808,1777184730107,150.0,7.07e-05,2]
[421157809,1777184730176,150.0,7.102e-05,2]
[421157810,1777184730247,150.0,7.134e-05,2]
[421157811,1777184730335,150.0,7.166e-05,2]
[421157812,1777184730388,150.0,7.199e-05,2]
[421157813,1777184730479,150.0,7.231e-05,2]
[421157814,1777184730526,150.0,7.263e-05,2]
[421157815,1777184732026,150.0,7.296e-05,2]
[421157816,1777184732064,150.0,7.328e-05,2]
[421157817,1777184732100,150.0,7.36e-05,2]
[421157818,1777184732146,150.0,7.392e-05,2]
[421157819,1777184732178,196.17255609,7.425e-05,2]
[421157820,1777184733207,150.0,6.682e-05,2]
[421157821,1777184733257,150.0,6.806e-05,2]
[421157822,1777184733362,150.0,6.93e-05,2]
[421157823,1777184733427,150.0,7.053e-05,2]
[421157824,1777184733472,150.0,7.177e-05,2]
[421157825,1777184733550,150.0,7.301e-05,2]
[421157826,1777184733618,289.8633783,7.425e-05,2]
[421157827,1777184733819,150.0,6.682e-05,2]
[421157828,1777184733879,150.0,6.765e-05,2]
[421157829,1777184733947,150.0,6.847e-05,2]
[421157830,1777184734023,150.0,6.93e-05,2]
[421157831,1777184734102,150.0,7.012e-05,2]
[421157832,1777184734157,150.0,7.095e-05,2]
[421157833,1777184734230,150.0,7.177e-05,2]
[421157834,1777184734317,150.0,7.26e-05,2]
[421157835,1777184734401,150.0,7.342e-05,2]
[421157836,1777184734501,253.83077084,7.425e-05,2]
[421157837,1777184740983,500.0,7.444e-05,2]
[421157838,1777184741030,600.0,7.444e-05,2]
[421157839,1777184754479,500.0,7.444e-05,2]
[421157840,1777184761278,300.0,7.444e-05,2]
[421157841,1777184765523,500.0,7.444e-05,2]
[421157842,1777184765560,500.0,7.444e-05,2]
[421157843,1777184767387,218.0,7.444e-05,3]
[421157844,1777184783155,500.0,7.444e-05,2]